bitfinex-derivatives/quotes_ETHF0:USTF0_20251009
["timestamp","ask_amount","ask_price","bid_price","bid_amount"]
[1760029496243,3.21006617,4294.1,4294.0,2.10496761]
[1760029496838,3.21006617,4294.1,4294.0,0.00216761]
[1760029497039,3.21006617,4294.1,4294.0,1.48566761]
[1760029497239,3.21006617,4294.1,4294.0,2.10496761]
[1760029498847,3.21006617,4294.1,4294.0,0.00216761]
[1760029499149,3.73930049,4294.1,4294.0,0.00216761]
[1760029500143,3.73930049,4294.1,4294.0,1.48566761]
[1760029500341,3.21006617,4294.1,4294.0,2.10496761]
[1760029500550,0.00226617,4294.1,4294.0,2.10496761]
[1760029500845,3.2078,4295.7,4294.6,1.4835]
[1760029501146,3.2078,4295.7,4295.6,1.4835]
[1760029501849,3.21047772,4295.7,4295.6,1.4835]
[1760029502248,3.46047772,4295.7,4295.1,42.2835]
[1760029502548,3.46047772,4295.7,4295.1,1.4835]
[1760029503744,3.2078,4295.2,4295.1,1.4835]
[1760029503941,3.2078,4295.2,4295.0,1.4835]
[1760029504142,3.2078,4295.2,4294.5,2.1028]
[1760029504143,0.25,4295.1,4294.5,2.1028]
[1760029504343,0.52914132,4295.0,4294.6,1.4835]
[1760029504545,0.25,4295.1,4295.0,0.6193]
[1760029504746,0.25,4295.1,4295.0,2.1028]
[1760029505249,0.25,4295.1,4294.5,2.1028]
[1760029506251,0.25,4295.0,4294.2,4.693]
[1760029506445,0.25,4295.0,4294.3,1.4852]
[1760029506641,0.25,4295.0,4294.5,0.5687]
[1760029506847,3.2078,4295.2,4295.0,2.0539]
[1760029507143,0.25,4295.1,4295.0,2.0539]
[1760029507349,3.2078,4295.2,4295.1,1.4852]
[1760029507845,8.2078,4295.2,4294.5,2.0539]
[1760029508147,8.2078,4295.2,4293.0,0.5687]
[1760029508148,0.3683,4294.5,4293.4,0.94245821]
[1760029508343,3.2078,4293.9,4293.1,3.2078]
[1760029508541,0.6183,4293.8,4293.0,0.5687]
[1760029508747,3.07795615,4293.8,4293.0,0.5687]
[1760029508949,3.2078,4293.9,4293.5,0.5687]
[1760029509150,3.4578,4293.9,4293.5,0.57156063]
[1760029509347,3.4578,4293.9,4293.5,0.00286063]
[1760029509546,0.3683,4293.7,4293.5,0.00286063]
[1760029509748,0.6183,4293.6,4293.5,0.00286063]
[1760029509944,3.68390445,4293.6,4292.7,1.0]
[1760029510152,0.3683,4292.8,4292.7,1.0]
[1760029510351,1.14858609,4292.8,4292.7,1.0]
[1760029510651,3.69465603,4292.8,4292.7,1.0]
[1760029510849,0.6996,4292.7,4290.6,3.2078]
[1760029511046,3.2078,4291.2,4291.0,0.00176856]
[1760029511246,3.20961518,4291.2,4291.0,0.00176856]
[1760029511456,0.25,4291.1,4291.0,0.00176856]
[1760029511843,3.93707548,4291.1,4291.0,0.00176856]
[1760029512156,4.46488424,4291.1,4291.0,0.00176856]
[1760029512549,4.46488424,4291.1,4290.0,0.5687]
[1760029512744,4.46488424,4291.1,4290.1,1.4852]
[1760029512745,3.2078,4290.5,4290.1,1.4852]
[1760029513055,0.00181518,4291.2,4290.6,1.4852]
[1760029513645,0.00181518,4291.2,4290.6,0.00269579]
[1760029513646,0.6996,4290.8,4290.6,0.00269579]
[1760029513851,0.25,4290.7,4290.6,0.00269579]
[1760029514255,0.9496,4290.7,4290.6,0.00269579]
[1760029514449,0.25,4290.7,4290.6,1.48789579]
[1760029514758,0.25,4290.7,4290.6,0.00269579]
[1760029515248,0.25,4290.7,4290.6,1.48789579]
[1760029515448,3.2078,4290.9,4290.6,1.48789579]
[1760029515648,0.25,4290.8,4290.6,1.48789579]
[1760029515954,0.25,4290.8,4290.6,0.00269579]
[1760029516853,0.9496,4290.8,4290.6,0.00269579]
[1760029517160,0.6996,4290.7,4289.5,3.7765]
[1760029517450,3.2078,4289.6,4288.2,1.4852]
[1760029517651,3.2078,4288.3,4288.2,1.4852]
[1760029518044,3.2078,4288.3,4287.6,42.2852]
[1760029518249,3.2078,4288.3,4287.6,1.48696161]
[1760029518653,0.25,4288.3,4288.0,0.5687]
[1760029518847,0.25,4288.3,4288.1,1.4852]
[1760029519056,3.4578,4288.3,4287.6,3.20956161]
[1760029519360,3.4578,4288.3,4287.6,0.00176161]
[1760029520257,3.76702035,4288.2,4287.6,0.00176161]
[1760029520662,0.25,4288.1,4287.6,0.00176161]
[1760029520848,0.95248738,4288.1,4287.6,0.00176161]
[1760029521053,0.00288738,4288.1,4287.6,0.00176161]
[1760029521262,0.25,4288.0,4287.6,0.00176161]
[1760029521560,0.25,4288.0,4287.7,1.4852]
[1760029521753,0.25,4288.0,4287.6,0.00176161]
[1760029522059,3.2078,4287.8,4287.6,0.00176161]
[1760029522256,0.9496,4287.7,4287.6,0.00176161]
[1760029522651,0.6996,4287.7,4287.6,0.00176161]
[1760029522860,0.6996,4287.7,4286.7,1.4852]
[1760029522861,4.0165692,4287.7,4286.7,1.4852]
[1760029523155,3.2078,4286.8,4286.7,1.4852]
[1760029523359,3.2078,4286.8,4286.1,1.7352]
[1760029523663,3.2078,4287.3,4286.1,1.7352]
[1760029523859,0.25,4287.2,4286.1,1.73791036]
[1760029524266,3.2078,4287.3,4286.6,1.4852]
[1760029524567,3.2078,4287.3,4287.1,1.4852]
[1760029524956,3.2078,4287.8,4287.2,1.4852]
[1760029525459,0.25,4287.7,4287.1,1.4852]
[1760029526464,0.25,4287.7,4287.0,3.2078]
[1760029526465,3.0914303,4287.6,4287.0,3.2078]
[1760029526663,0.6996,4287.5,4287.0,3.2078]
[1760029526965,3.3414303,4287.4,4286.6,1.4852]
[1760029527356,0.6996,4287.0,4286.1,0.00271036]
[1760029527552,0.3313,4288.0,4286.1,0.00271036]
[1760029527553,0.6996,4286.5,4286.1,0.00271036]
[1760029527755,0.25,4286.4,4286.1,0.00271036]
[1760029527955,3.2078,4286.6,4286.2,1.4852]
[1760029528170,0.25,4286.5,4286.1,0.00271036]
[1760029528360,0.25,4286.5,4286.2,1.4852]
[1760029528861,3.2078,4286.6,4286.1,0.00271036]
[1760029529060,0.25,4286.5,4286.1,0.00271036]
[1760029529362,0.25,4286.4,4286.1,0.00271036]
[1760029529568,0.6996,4286.3,4286.1,0.00271036]
[1760029529767,0.25,4286.4,4284.6,1.4852]
[1760029529960,3.2078,4285.4,4284.6,42.2852]
[1760029530161,0.231,4285.3,4284.6,42.2852]
[1760029530663,0.3683,4287.0,4285.6,1.4852]
[1760029530664,0.25,4285.7,4285.6,1.4852]
[1760029530861,0.25,4285.7,4285.1,1.4852]
[1760029531065,3.2078,4285.4,4284.7,42.2852]
[1760029531265,0.25,4285.3,4284.7,42.2852]
[1760029531467,0.25,4285.3,4284.7,1.4852]
[1760029532267,3.2078,4285.4,4284.7,1.4852]
[1760029532461,0.25,4285.3,4284.7,1.4852]
[1760029533365,3.2078,4285.9,4284.7,1.4852]
[1760029533565,3.2078,4285.4,4285.1,1.4852]
[1760029533765,0.25,4285.4,4284.8,1.4852]
[1760029533969,3.2078,4284.9,4284.6,0.00214113]
[1760029534167,0.6969,4284.7,4284.6,0.00214113]
[1760029534465,3.98271082,4284.7,4283.6,1.4852]
[1760029534774,3.2078,4284.3,4283.6,1.4852]
[1760029534969,3.2101436,4284.9,4283.7,1.4852]
[1760029535169,0.25,4284.8,4283.7,0.25]
[1760029535366,0.25,4284.8,4283.8,1.4852]
[1760029535573,3.2101436,4284.9,4283.8,1.4188]
[1760029535772,3.4601436,4284.9,4284.3,1.4188]
[1760029535971,3.2101436,4284.9,4284.3,1.4188]
[1760029536174,0.0023436,4284.9,4284.6,1.4188]
[1760029536472,0.0023436,4284.9,4284.8,1.4188]
[1760029538076,0.0023436,4284.9,4284.8,6.4188]
[1760029538275,3.2078,4285.9,4285.1,1.4188]
[1760029538472,0.6805,4285.3,4284.5,1.4188]
[1760029538771,3.8883,4284.9,4284.0,5.4674]
[1760029539070,3.8883,4284.9,4284.0,5.2174]
[1760029539071,0.25,4284.8,4284.0,5.2174]
[1760029539271,3.24221751,4284.8,4284.0,3.2078]
[1760029539570,2.99221751,4284.8,4284.0,3.2078]
[1760029539870,0.25,4284.7,4284.0,3.2078]
[1760029540071,2.99221751,4284.8,4284.0,3.2078]
[1760029540072,0.00169265,4284.8,4284.1,1.4188]
[1760029543076,0.00169265,4284.8,4284.6,1.4188]
[1760029543570,6.22431756,4284.7,4284.0,1.4188]
[1760029543776,0.6805,4284.4,4283.6,3.2078]
[1760029543971,0.6805,4284.1,4283.6,3.2078]
[1760029544571,3.2078,4284.2,4283.7,1.42143212]
[1760029544781,3.8714,4284.2,4283.7,1.42143212]
[1760029545079,0.6636,4284.1,4283.7,0.00263212]
[1760029545275,0.41997,4283.9,4283.7,0.00263212]
[1760029545478,0.41997,4283.9,4283.7,1.45513212]
[1760029545668,0.41997,4283.9,4283.8,1.4525]
[1760029545868,3.2078,4284.2,4283.8,1.4525]
[1760029546071,0.41996,4284.0,4283.8,1.4525]
[1760029546474,3.2078,4284.2,4283.8,1.4525]
[1760029546673,0.41993,4284.3,4283.8,1.4525]
[1760029546874,0.66992,4284.4,4283.8,1.4525]
[1760029547076,0.41994,4284.2,4284.0,0.5708]
[1760029547275,0.41996,4284.0,4283.8,1.4525]
[1760029547477,0.25,4284.6,4283.8,1.4525]
[1760029547681,0.52810977,4284.5,4283.7,0.00263212]
[1760029547975,3.2078,4284.7,4284.1,1.4525]
[1760029548184,3.2078,4284.7,4284.1,1.7025]
[1760029548481,3.2078,4285.2,4284.6,0.41989]
[1760029548782,0.25,4286.1,4285.1,0.41984]
[1760029548976,0.52876967,4286.0,4285.2,1.4525]
[1760029549179,0.52876967,4285.9,4285.2,1.4525]
[1760029549379,0.52876967,4285.8,4285.2,1.4525]
[1760029549681,0.52876967,4285.7,4285.1,3.4578]
[1760029549981,3.73656967,4285.7,4285.1,0.25]
[1760029550278,0.52971482,4285.6,4285.1,0.25]
[1760029550476,0.52972235,4285.5,4285.2,1.4525]
[1760029550677,3.2078,4285.7,4285.1,1.7025]
[1760029550884,3.2078,4285.7,4285.1,0.25]
[1760029550885,0.52968573,4285.6,4285.1,0.25]
[1760029551077,3.2078,4285.7,4285.2,1.4525]
[1760029551382,3.2078,4285.7,4285.1,0.25]
[1760029551383,0.00243338,4285.8,4285.7,1.4525]
[1760029551677,0.53244409,4285.8,4285.7,1.4525]
[1760029552683,0.53244409,4285.8,4285.1,1.4525]
[1760029552990,0.53001071,4285.7,4285.1,1.4525]
[1760029553176,0.53001071,4285.7,4285.6,4.6603]
[1760029553482,0.00243338,4285.8,4285.7,0.41979]
[1760029553673,3.2078,4287.1,4287.0,0.5708]
[1760029553879,3.2078,4287.1,4286.5,0.5708]
[1760029554579,3.2095711,4287.1,4286.5,0.5736672]
[1760029554778,0.0017711,4287.1,4286.6,1.4525]
[1760029554978,0.0017711,4287.1,4287.0,2.0233]
[1760029555271,0.0017711,4287.1,4287.0,2.2733]
[1760029556085,1.22430059,4288.2,4287.2,1.4525]
[1760029556384,1.22430059,4288.2,4287.5,0.5708]
[1760029556880,3.2078,4287.8,4287.5,0.5708]
[1760029557087,0.6636,4287.7,4287.4,40.8]
[1760029557384,3.21064347,4287.8,4287.4,40.8]
[1760029557586,1.88790059,4287.7,4286.8,0.249]
[1760029557880,3.2078,4287.3,4286.8,1.7015]
[1760029558084,3.2078,4287.3,4286.9,1.4525]
[1760029558287,1.22430059,4287.7,4287.5,0.5708]
[1760029558485,0.00284347,4287.8,4287.6,1.4525]
[1760029558887,0.00284347,4287.8,4287.5,0.5708]
[1760029559083,1.22430059,4288.3,4287.9,0.41957]
[1760029559385,3.2078,4288.8,4288.6,1.4525]
[1760029559682,3.2078,4288.8,4288.1,40.8]
[1760029559888,4.43210059,4288.8,4288.1,40.8]
[1760029560085,3.21029987,4288.8,4288.1,40.8]
[1760029560288,3.8714,4288.3,4287.8,1.4525]
[1760029560684,3.2078,4288.3,4288.0,0.5708]
[1760029560881,0.00249987,4288.8,4288.2,1.4525]
[1760029562286,3.2078,4288.5,4288.1,40.8]
[1760029562475,3.2078,4288.5,4288.2,1.4525]
[1760029564280,0.00249987,4288.8,4288.5,0.5708]
[1760029564481,0.00249987,4288.8,4288.6,1.4525]
[1760029564676,0.00249987,4288.8,4288.6,2.121]
[1760029564876,3.2078,4289.6,4289.0,0.5708]
[1760029565189,0.249,4289.7,4288.5,2.0233]
[1760029565190,3.2078,4289.1,4288.5,2.0233]
[1760029565384,3.4568,4289.1,4288.5,1.4525]
[1760029565584,0.52230365,4289.0,4288.3,3.2078]
[1760029565880,0.6345,4288.9,4288.3,3.2078]
[1760029566084,3.2078,4288.6,4288.1,40.8]
[1760029566286,0.249,4288.5,4288.1,40.8]
[1760029566481,0.249,4288.5,4288.2,1.4906]
[1760029566787,0.249,4288.5,4288.1,40.8]
[1760029566987,3.2078,4288.6,4288.1,40.8]
[1760029567185,3.2078,4288.6,4288.5,2.0332]
[1760029567482,3.2078,4288.6,4288.1,42.2906]
[1760029568092,3.2078,4288.6,4288.5,0.5426]
[1760029568283,3.2078,4288.6,4288.5,2.0332]
[1760029568478,3.4568,4288.6,4288.5,2.0332]
[1760029569191,3.4568,4288.6,4288.2,1.4906]
[1760029569387,3.4568,4288.6,4288.1,40.8]
[1760029569782,3.4568,4288.6,4288.2,1.4906]
[1760029569985,0.6345,4288.5,4288.0,2.0332]
[1760029570290,3.4568,4288.6,4288.0,1.4906]
[1760029570490,0.6033,4288.1,4287.5,1.4906]
[1760029570691,0.6345,4287.9,4287.1,40.8]
[1760029571688,3.10175126,4287.8,4287.1,40.8]
[1760029571887,0.6345,4287.4,4287.0,1.4906]
[1760029572190,0.6345,4287.4,4286.7,3.2078]
[1760029572191,3.35075126,4287.3,4286.7,3.2078]
[1760029572891,3.10175126,4287.3,4286.7,3.2078]
[1760029573092,0.249,4287.2,4286.7,3.2078]
[1760029573292,0.249,4287.2,4286.9,1.4906]
[1760029573489,3.2078,4287.5,4286.8,1.4906]
[1760029573688,0.249,4287.4,4286.8,1.4906]
[1760029573888,0.249,4287.3,4286.9,1.4906]
[1760029574194,0.249,4287.3,4287.0,1.4906]
[1760029574595,0.249,4287.3,4286.7,3.2078]
[1760029574889,0.249,4287.3,4286.9,1.4906]
[1760029575092,0.249,4287.3,4286.8,1.4906]
[1760029575299,0.249,4287.3,4286.9,1.4906]
[1760029575593,0.249,4287.2,4287.0,1.4906]
[1760029575791,0.249,4287.2,4286.8,1.4906]
[1760029575984,0.249,4287.2,4286.9,1.4906]
[1760029576191,3.2078,4287.5,4287.1,1.4906]
[1760029576494,0.249,4287.4,4287.0,0.5426]
[1760029576692,3.2078,4288.0,4287.2,3.2078]
[1760029576884,0.249,4288.2,4287.3,1.4906]
[1760029577086,3.2078,4288.6,4288.1,1.4906]
[1760029577392,0.00188068,4289.0,4288.6,1.4906]
[1760029577788,0.00188068,4289.0,4288.6,1.7396]
[1760029578191,0.00188068,4289.0,4288.7,1.4906]
[1760029578399,3.2078,4289.7,4289.5,0.5426]
[1760029578591,3.2078,4289.7,4289.6,1.4906]
[1760029579196,0.249,4290.1,4289.6,1.4906]
[1760029579392,0.00301369,4290.1,4290.0,0.5426]
[1760029579598,0.00301369,4290.1,4290.0,5.241]
[1760029580389,3.2078,4291.5,4290.6,1.4906]
[1760029580593,0.249,4291.4,4290.6,1.4906]
[1760029580890,3.2078,4291.5,4290.6,1.4906]
[1760029581101,0.249,4291.4,4290.7,40.8]
[1760029581297,0.25163574,4291.4,4290.7,40.8]
[1760029581590,0.00263574,4291.4,4290.7,40.8]
[1760029581791,0.00263574,4291.4,4290.8,1.7396]
[1760029581994,0.00263574,4291.4,4291.1,1.4906]
[1760029582197,0.00263574,4291.4,4291.3,3.2078]
[1760029582397,0.00263574,4291.4,4291.3,4.6984]
[1760029584101,0.00263574,4291.4,4290.7,40.8]
[1760029584102,0.63713574,4291.4,4290.8,3.2078]
[1760029584295,3.8423,4291.2,4290.5,1.4906]
[1760029584495,0.51616563,4291.1,4290.5,1.4906]
[1760029584690,0.76516563,4291.0,4290.3,0.249]
[1760029584999,3.2078,4290.7,4290.0,0.5426]
[1760029585596,0.51630753,4290.6,4290.0,0.5426]
[1760029585901,0.00263574,4291.4,4290.0,0.5426]
[1760029585902,0.249,4291.1,4290.3,3.2078]
[1760029586095,0.51613699,4291.0,4290.1,1.4906]
[1760029586392,3.2078,4290.2,4289.6,1.49285272]
[1760029586595,3.4568,4290.2,4289.6,1.49285272]
[1760029586798,0.6345,4290.0,4289.6,0.00225272]
[1760029586998,0.6345,4289.8,4289.6,0.00225272]
[1760029587295,1.61334254,4291.3,4291.0,0.5426]
[1760029587499,3.2078,4292.5,4291.3,1.4906]
[1760029587891,3.2078,4292.0,4291.3,42.2906]
[1760029588893,3.2078,4292.5,4291.3,42.2906]
[1760029589095,0.249,4292.2,4291.3,42.2906]
[1760029589401,3.2078,4292.5,4291.3,45.8]
[1760029589604,3.2078,4292.5,4291.6,1.4906]
[1760029589801,0.181,4292.6,4292.0,3.2078]
[1760029590102,3.2078,4293.0,4292.0,4.6984]
[1760029590403,0.76002167,4292.9,4292.0,4.6984]
[1760029590700,0.51102167,4292.8,4292.0,4.6984]
[1760029590901,0.249,4292.8,4292.0,5.241]
[1760029591093,3.20960184,4293.0,4292.0,5.241]
[1760029591294,0.510735,4292.9,4292.0,5.241]
[1760029591497,2.98585066,4292.9,4292.0,3.2078]
[1760029591698,4.7041,4292.3,4291.5,2.0332]
[1760029592202,3.2078,4291.8,4290.8,3.2078]
[1760029592398,0.249,4291.7,4290.9,1.4906]
[1760029592799,3.23440509,4291.7,4290.9,1.4906]
[1760029593199,2.98540509,4291.7,4290.9,1.4906]
[1760029593399,2.98540509,4291.7,4290.2,0.41934]
[1760029593400,1.4963,4291.2,4289.6,1.49285272]
[1760029593704,3.2078,4290.5,4289.6,1.49285272]
[1760029593909,3.2078,4290.5,4289.7,40.8]
[1760029594106,3.4558,4290.5,4289.8,1.4906]
[1760029595505,4.53357051,4290.4,4289.6,0.00225272]
[1760029595702,1.3487,4289.9,4289.6,0.00225272]
[1760029595895,1.3487,4289.7,4288.6,3.2078]
[1760029596097,3.2078,4289.2,4288.6,3.2078]
[1760029596306,1.3487,4289.0,4288.6,3.2078]
[1760029596500,0.248,4289.1,4288.6,3.2078]
[1760029596699,1.3487,4289.0,4288.6,3.2078]
[1760029596895,1.3487,4288.9,4288.6,0.0022274]
[1760029597104,3.36291536,4289.0,4288.6,0.0022274]
[1760029597309,0.2918,4289.0,4288.6,0.0022274]
[1760029597503,1.3487,4288.7,4288.1,3.2078]
[1760029597700,0.4836,4288.5,4288.1,3.2078]
[1760029597909,6.21784137,4288.6,4287.7,1.3723]
[1760029598103,3.01004137,4288.4,4287.7,1.3723]
[1760029598306,1.8768,4288.0,4287.1,44.0078]
[1760029598509,0.248,4287.9,4287.1,44.01004604]
[1760029599205,3.10150952,4287.8,4287.1,44.01004604]
[1760029600306,3.2078,4288.1,4287.1,3.21004604]
[1760029600510,0.248,4288.1,4287.2,1.3723]
[1760029600810,0.248,4288.1,4287.3,40.8]
[1760029601506,1.3487,4288.9,4287.8,3.2078]
[1760029601805,4.32656158,4288.9,4287.9,1.3723]
[1760029602108,1.3487,4289.4,4288.8,4.5801]
[1760029602608,1.3487,4288.8,4288.1,1.6203]
[1760029602905,3.2078,4288.4,4287.6,3.2078]
[1760029603109,0.248,4288.3,4287.6,3.2078]
[1760029603310,0.248,4288.3,4287.6,44.0078]
[1760029603508,3.2078,4289.0,4288.2,3.2078]
[1760029603812,0.248,4288.9,4288.2,4.5801]
[1760029604206,0.248,4288.9,4288.8,3.2078]
[1760029604412,3.2078,4289.7,4288.7,1.3723]
[1760029604609,1.422,4289.5,4288.4,0.248]
[1760029604907,1.422,4289.0,4288.1,4.5972]
[1760029605108,0.248,4288.9,4288.1,4.5972]
[1760029605313,3.26976593,4288.9,4288.1,4.5972]
[1760029605909,0.248,4288.9,4288.1,4.5972]
[1760029606110,1.422,4289.0,4288.1,4.5972]
[1760029606416,0.248,4289.5,4288.7,4.5972]
[1760029606714,2.96384189,4289.4,4288.7,4.5972]
[1760029606908,2.96384189,4289.4,4288.7,3.2078]
[1760029607508,4.6298,4289.6,4288.7,3.2078]
[1760029607709,4.6298,4289.6,4288.8,1.3894]
[1760029607710,0.248,4289.5,4288.8,1.3894]
[1760029608111,0.0020451,4289.9,4288.8,1.3894]
[1760029608112,0.0020451,4289.9,4289.4,3.2078]
[1760029608316,0.0020451,4289.9,4289.5,1.3894]
[1760029608617,0.0020451,4289.9,4289.4,3.2078]
[1760029608813,0.0020451,4289.9,4289.4,44.0078]
[1760029609116,0.0020451,4289.9,4289.5,0.5853]
[1760029609515,0.0020451,4289.9,4289.6,1.3894]
[1760029609713,0.0020451,4289.9,4289.5,0.5853]
[1760029609905,0.0020451,4289.9,4289.6,1.3894]
[1760029610216,0.0020451,4289.9,4289.8,1.3894]
[1760029610820,0.0020451,4289.9,4289.8,6.3894]
[1760029611316,1.422,4291.2,4290.0,0.5853]
[1760029611511,1.422,4291.2,4290.5,3.2078]
[1760029611910,3.2078,4291.3,4290.5,3.7931]
[1760029612322,3.20990729,4291.3,4290.5,3.79583391]
[1760029612615,3.20990729,4291.3,4290.5,4.04383391]
[1760029612819,4.41933804,4291.2,4290.5,0.00273391]
[1760029613118,4.41933804,4291.2,4290.5,3.21053391]
[1760029613511,1.422,4291.2,4290.5,0.00273391]
[1760029613713,1.422,4291.2,4290.6,3.2078]
[1760029613912,1.422,4291.2,4290.6,4.5972]
[1760029614120,3.45790729,4291.3,4290.6,4.8452]
[1760029614314,4.87990729,4291.3,4290.7,40.8]
[1760029614916,1.422,4291.1,4290.5,0.00273391]
[1760029615120,0.5374,4291.0,4290.5,0.00273391]
[1760029615323,1.422,4290.9,4290.5,0.00273391]
[1760029615518,0.248,4290.8,4290.5,0.00273391]
[1760029615720,3.22550987,4290.8,4290.5,0.00273391]
[1760029616022,1.422,4290.7,4290.5,0.00273391]
[1760029616325,1.422,4290.6,4290.5,0.00273391]
[1760029617421,0.248,4290.8,4290.5,0.00273391]
[1760029617924,1.422,4291.1,4290.5,0.00273391]
[1760029618221,3.20990729,4291.3,4290.6,1.3894]
[1760029618222,1.422,4291.2,4290.6,1.3894]
[1760029618427,1.422,4291.2,4290.5,0.00273391]
[1760029619518,1.422,4291.2,4290.5,1.39213391]
[1760029620224,1.422,4291.2,4290.7,3.2078]
[1760029620528,0.00210729,4291.3,4290.8,1.3894]
[1760029620818,1.67,4292.3,4291.2,4.5972]
[1760029621018,1.422,4292.3,4291.3,41.048]
[1760029621220,3.2078,4292.4,4291.8,4.5972]
[1760029621626,0.00193222,4292.4,4291.8,4.5972]
[1760029622015,0.00193222,4292.4,4292.3,3.2078]
[1760029622329,0.00193222,4292.4,4292.3,4.5972]
[1760029623031,1.42393222,4292.4,4291.8,3.2078]
[1760029623232,0.00193222,4292.4,4291.8,3.2078]
[1760029623430,3.28545212,4292.3,4291.8,3.2078]
[1760029623624,0.5281,4292.0,4291.2,3.2078]
[1760029623930,3.58665976,4291.9,4291.2,3.2078]
[1760029624120,3.2078,4291.6,4290.7,3.2078]
[1760029624322,0.4688,4291.0,4290.2,2.37983391]
[1760029624526,1.422,4290.8,4290.2,2.37983391]
[1760029625028,3.4996,4290.5,4289.6,3.2078]
[1760029625232,1.422,4290.3,4289.6,3.20988542]
[1760029625625,3.0775931,4290.2,4289.6,3.20988542]
[1760029625935,0.5033,4290.0,4289.6,0.00208542]
[1760029626136,1.4177,4289.8,4289.6,0.00208542]
[1760029626630,3.02046764,4289.7,4289.6,0.00208542]
[1760029626828,1.4177,4290.1,4289.6,3.20988542]
[1760029627032,0.248,4290.1,4289.6,3.20988542]
[1760029627222,1.4177,4290.0,4289.6,3.20988542]
[1760029627533,1.4177,4290.0,4289.6,0.00208542]
[1760029627534,6.73156764,4290.0,4289.6,0.00208542]
[1760029627724,1.4177,4289.9,4289.6,0.00208542]
[1760029627926,6.73156764,4290.0,4289.6,0.00208542]
[1760029628126,1.4177,4289.7,4289.6,0.00208542]
[1760029630133,3.2078,4290.0,4289.6,1.43418542]
[1760029630328,4.6255,4290.0,4289.6,1.43418542]
[1760029630730,3.2078,4290.0,4289.6,0.00208542]
[1760029631030,0.248,4290.6,4289.7,1.4321]
[1760029631334,0.51143304,4290.5,4289.7,1.4321]
[1760029631530,0.248,4290.6,4289.7,1.4321]
[1760029631531,0.51143304,4290.4,4289.7,1.4321]
[1760029631836,0.248,4290.6,4289.7,1.4321]
[1760029632031,0.51166489,4290.5,4289.7,1.4321]
[1760029632229,0.248,4290.6,4289.7,1.4321]
[1760029632430,0.248,4290.6,4290.3,1.4321]
[1760029632636,0.248,4290.6,4289.9,0.248]
[1760029633336,0.248,4290.6,4290.0,40.8]
[1760029633634,0.248,4290.6,4290.1,3.2078]
[1760029633829,3.2078,4291.3,4290.1,3.2078]
[1760029634036,0.248,4291.2,4290.3,1.4321]
[1760029634237,0.248,4291.2,4290.3,1.6801]
[1760029635838,1.4177,4291.1,4290.3,1.6801]
[1760029636036,1.4177,4291.1,4290.3,1.4321]
[1760029636534,3.4558,4291.3,4290.6,1.4321]
[1760029636735,1.4177,4291.2,4290.4,0.248]
[1760029636933,4.4629249,4291.2,4290.1,4.6399]
[1760029637129,4.4629249,4291.2,4290.3,0.248]
[1760029638238,4.4629249,4291.2,4290.4,1.4321]
[1760029638537,3.2078,4291.3,4290.6,4.6399]
[1760029638838,3.2078,4291.3,4290.7,0.248]
[1760029639229,3.2078,4291.3,4290.8,1.4321]
[1760029639835,3.2078,4291.3,4290.7,0.248]
[1760029640545,0.248,4291.6,4290.7,0.248]
[1760029640740,0.248,4291.6,4290.8,1.4321]
[1760029641239,0.248,4291.6,4290.9,40.8]
[1760029642346,0.248,4291.6,4291.1,3.2078]
[1760029642640,1.4177,4291.5,4291.2,1.4321]
[1760029642842,0.248,4291.6,4291.2,1.4321]
[1760029643032,0.248,4291.6,4291.3,1.4321]
[1760029643233,1.6657,4291.6,4291.3,1.4321]
[1760029643432,1.4177,4291.5,4291.3,1.4321]
[1760029643738,1.4177,4291.5,4291.1,4.6399]
[1760029644237,1.4177,4291.5,4291.1,3.2078]
[1760029644541,1.4177,4291.3,4290.2,0.247]
[1760029644739,1.4177,4290.7,4290.0,3.2078]
[1760029644932,1.6647,4290.7,4290.0,3.2078]
[1760029645436,1.4177,4290.4,4290.0,3.2078]
[1760029645736,1.4177,4290.2,4290.0,3.2078]
[1760029646040,1.4177,4290.2,4289.6,0.00208542]
[1760029646041,3.50976887,4290.1,4289.6,0.00208542]
[1760029646338,1.8865,4290.5,4289.7,1.4321]
[1760029646541,0.76017619,4290.4,4290.0,1.4321]
[1760029646737,0.51317619,4290.3,4290.0,1.4321]
[1760029646934,0.51317619,4290.3,4289.9,3.4548]
[1760029647133,4.44600752,4291.5,4290.1,1.4321]
[1760029647432,1.4177,4291.8,4291.0,3.7865]
[1760029647628,0.5133798,4291.7,4291.1,1.4321]
[1760029647826,1.4177,4291.8,4291.1,1.4321]
[1760029648028,0.51334808,4291.7,4291.1,1.4321]
[1760029648234,1.4177,4291.8,4291.1,1.4321]
[1760029648639,3.2078,4292.0,4291.1,1.4321]
[1760029648839,0.247,4292.1,4291.7,3.2078]
[1760029649039,0.51337355,4292.0,4291.8,1.4321]
[1760029649230,0.247,4292.1,4291.8,1.4321]
[1760029649638,0.51327853,4292.0,4291.4,0.247]
[1760029649935,1.4177,4291.9,4291.5,1.4321]
[1760029650128,0.247,4292.1,4291.5,1.4321]
[1760029650334,0.51335309,4292.0,4291.4,1.6791]
[1760029650634,0.00193222,4292.4,4291.7,3.2078]
[1760029650833,0.00193222,4292.4,4292.2,4.6399]
[1760029651030,0.51350768,4292.3,4292.2,1.4321]
[1760029651438,0.00193222,4292.4,4292.0,0.5787]
[1760029651846,0.00193222,4292.4,4292.1,1.4321]
[1760029652037,0.00193222,4292.4,4292.1,40.8]
[1760029652432,0.00193222,4292.4,4292.2,1.4321]
[1760029652636,0.00193222,4292.4,4292.1,40.8]